[Event "*** Titled Tuesday Blitz"]
[Site "Chess.com"]
[Date "2021.03.02"]
[Round "10"]
[White "JoakimVonAnd"]
[Black "ChessFighter1975"]
[Result "0-1"]
[WhiteElo "2494"]
[BlackElo "2376"]
[TimeControl "180+1"]
[EndTime "11:57:01 PST"]
[Termination "ChessFighter1975 won by resignation"]

1. c4 {[%clk 0:03:00.9]} 1... d6 {[%clk 0:03:00.1]} 2. Nc3 {[%clk 0:02:59.1]}
2... Nf6 {[%clk 0:03:00.6]} 3. g3 {[%clk 0:02:58.7]} 3... g6 {[%clk 0:03:01]} 4.
Bg2 {[%clk 0:02:59]} 4... Bg7 {[%clk 0:03:01.6]} 5. d4 {[%clk 0:02:59]} 5... O-O
{[%clk 0:03:02.5]} 6. Nf3 {[%clk 0:02:58.8]} 6... Nc6 {[%clk 0:03:03.1]} 7. O-O
{[%clk 0:02:58.3]} 7... Bf5 {[%clk 0:03:03.7]} 8. d5 {[%clk 0:02:53.5]} 8... Na5
{[%clk 0:03:04.2]} 9. Nd4 {[%clk 0:02:51.1]} 9... Bd7 {[%clk 0:03:03.4]} 10. b3
{[%clk 0:02:45.5]} 10... c5 {[%clk 0:03:03.7]} 11. dxc6 {[%clk 0:02:45]} 11...
bxc6 {[%clk 0:03:04.6]} 12. Bb2 {[%clk 0:02:43.4]} 12... Rb8 {[%clk 0:03:04]}
13. Qc2 {[%clk 0:02:40]} 13... c5 {[%clk 0:03:04]} 14. Nf3 {[%clk 0:02:31.5]}
14... Nc6 {[%clk 0:03:04.3]} 15. Rad1 {[%clk 0:02:30.8]} 15... Bf5 {[%clk
0:02:58.4]} 16. e4 {[%clk 0:02:30]} 16... Bg4 {[%clk 0:02:58.9]} 17. Nd5 {[%clk
0:02:28.5]} 17... Bxf3 {[%clk 0:02:55.1]} 18. Bxf3 {[%clk 0:02:07.7]} 18... Nxd5
{[%clk 0:02:52.3]} 19. exd5 {[%clk 0:02:05.4]} 19... Nd4 {[%clk 0:02:45.7]} 20.
Bxd4 {[%clk 0:02:05.5]} 20... Bxd4 {[%clk 0:02:46.5]} 21. Rde1 {[%clk
0:02:01.8]} 21... Re8 {[%clk 0:02:32.9]} 22. h4 {[%clk 0:02:00.8]} 22... a5
{[%clk 0:02:32.7]} 23. Kg2 {[%clk 0:01:59.5]} 23... a4 {[%clk 0:02:32.6]} 24. h5
{[%clk 0:01:59.4]} 24... axb3 {[%clk 0:02:30.7]} 25. axb3 {[%clk 0:02:00.3]}
25... Qb6 {[%clk 0:02:26.6]} 26. Bd1 {[%clk 0:01:56.4]} 26... Qb4 {[%clk
0:02:23.1]} 27. hxg6 {[%clk 0:01:53.9]} 27... hxg6 {[%clk 0:02:22.6]} 28. Rh1
{[%clk 0:01:49.6]} 28... Qc3 {[%clk 0:02:13.4]} 29. Qe4 {[%clk 0:01:48.6]} 29...
Kg7 {[%clk 0:02:05]} 30. Qh4 {[%clk 0:01:43.2]} 30... Rh8 {[%clk 0:01:57.9]} 31.
Qxe7 {[%clk 0:01:41.8]} 31... Rbe8 {[%clk 0:01:37.1]} 32. Qxe8 {[%clk 0:01:25]}
32... Rxe8 {[%clk 0:01:38]} 33. Rxe8 {[%clk 0:01:25.4]} 33... Qd2 {[%clk
0:01:34]} 34. Re2 {[%clk 0:01:21.4]} 34... Qd3 {[%clk 0:01:26.5]} 35. Rh4 {[%clk
0:01:15.9]} 35... Qxd1 {[%clk 0:01:23.1]} 36. Rhe4 {[%clk 0:01:13.3]} 36... Qxb3
{[%clk 0:01:19.1]} 37. Re7 {[%clk 0:01:10.8]} 37... Qxc4 {[%clk 0:01:17.5]} 38.
Rd7 {[%clk 0:01:09.6]} 38... Qxd5+ {[%clk 0:01:17.3]} 39. Kh2 {[%clk 0:01:05.3]}
39... c4 {[%clk 0:01:13.6]} 40. Rc7 {[%clk 0:00:52.1]} 40... Qh5+ {[%clk
0:01:12]} 41. Kg2 {[%clk 0:00:51.9]} 41... Qxe2 {[%clk 0:01:11.9]} 0-1

[Event "*** Titled Tuesday Blitz"]
[Site "Chess.com"]
[Date "2021.03.02"]
[Round "10"]
[White "SimplyDevina"]
[Black "canary2016"]
[Result "1-0"]
[WhiteElo "2173"]
[BlackElo "1990"]
[TimeControl "180+1"]
[EndTime "11:57:02 PST"]
[Termination "SimplyDevina won by checkmate"]

1. d4 {[%clk 0:03:00.9]} 1... d5 {[%clk 0:02:59.8]} 2. c4 {[%clk 0:03:01.3]}
2... c6 {[%clk 0:02:59.9]} 3. Nc3 {[%clk 0:03:01.9]} 3... Nf6 {[%clk 0:03:00]}
4. e3 {[%clk 0:03:02.5]} 4... Bf5 {[%clk 0:02:59.8]} 5. Nf3 {[%clk 0:03:01.6]}
5... e6 {[%clk 0:02:59.9]} 6. Be2 {[%clk 0:03:01.5]} 6... Be7 {[%clk 0:02:59.4]}
7. O-O {[%clk 0:03:01.2]} 7... O-O {[%clk 0:02:59.6]} 8. b3 {[%clk 0:03:00.6]}
8... Nbd7 {[%clk 0:02:59.5]} 9. Bb2 {[%clk 0:03:00.8]} 9... Rc8 {[%clk
0:02:59.2]} 10. Rc1 {[%clk 0:03:00.6]} 10... h6 {[%clk 0:02:59.2]} 11. Bd3
{[%clk 0:02:56]} 11... Bxd3 {[%clk 0:02:58.8]} 12. Qxd3 {[%clk 0:02:56.9]} 12...
Qc7 {[%clk 0:02:56.2]} 13. e4 {[%clk 0:02:55.2]} 13... dxe4 {[%clk 0:02:56]} 14.
Nxe4 {[%clk 0:02:56.1]} 14... Nxe4 {[%clk 0:02:56.1]} 15. Qxe4 {[%clk 0:02:57]}
15... Nf6 {[%clk 0:02:56.7]} 16. Qe2 {[%clk 0:02:55.8]} 16... Rfd8 {[%clk
0:02:56.7]} 17. Rfd1 {[%clk 0:02:55.9]} 17... Bd6 {[%clk 0:02:51.4]} 18. h3
{[%clk 0:02:54.9]} 18... Bf4 {[%clk 0:02:50.6]} 19. Rc2 {[%clk 0:02:53.9]} 19...
Bd6 {[%clk 0:02:50.4]} 20. Rcd2 {[%clk 0:01:58]} 20... Bb4 {[%clk 0:02:49.1]}
21. Rd3 {[%clk 0:01:57.9]} 21... c5 {[%clk 0:02:47.5]} 22. d5 {[%clk 0:01:55.5]}
22... Nh7 {[%clk 0:02:42.2]} 23. dxe6 {[%clk 0:01:54]} 23... Rxd3 {[%clk
0:02:38.4]} 24. Rxd3 {[%clk 0:01:47.6]} 24... Re8 {[%clk 0:02:37.8]} 25. exf7+
{[%clk 0:01:46.6]} 25... Qxf7 {[%clk 0:02:37.7]} 26. Re3 {[%clk 0:01:41.8]}
26... Rxe3 {[%clk 0:02:27.8]} 27. Qxe3 {[%clk 0:01:42.7]} 27... Nf6 {[%clk
0:02:28.1]} 28. Ne5 {[%clk 0:01:40.3]} 28... Qe8 {[%clk 0:02:21.3]} 29. Qd3
{[%clk 0:01:35.7]} 29... Nh7 {[%clk 0:02:07]} 30. Qd5+ {[%clk 0:01:34.3]} 30...
Kf8 {[%clk 0:02:01.2]} 31. Nd7+ {[%clk 0:01:25.3]} 31... Ke7 {[%clk 0:01:57.8]}
32. Nxc5 {[%clk 0:01:11.8]} 32... Qc6 {[%clk 0:01:45.3]} 33. Qe5+ {[%clk
0:01:07.5]} 33... Kd8 {[%clk 0:01:37]} 34. Ne6+ {[%clk 0:00:59.5]} 34... Kc8
{[%clk 0:01:28]} 35. Nd4 {[%clk 0:00:58.9]} 35... Qd7 {[%clk 0:01:21.1]} 36. Nb5
{[%clk 0:00:49.8]} 36... Kd8 {[%clk 0:01:07.5]} 37. Bd4 {[%clk 0:00:43.7]} 37...
a6 {[%clk 0:01:03.3]} 38. Bb6+ {[%clk 0:00:43.3]} 38... Kc8 {[%clk 0:00:58.7]}
39. Na7# {[%clk 0:00:43.4]} 1-0

[Event "*** Titled Tuesday Blitz"]
[Site "Chess.com"]
[Date "2021.03.02"]
[Round "10"]
[White "maheswaran26"]
[Black "GLeruste"]
[Result "1-0"]
[WhiteElo "2341"]
[BlackElo "2479"]
[TimeControl "180+1"]
[EndTime "11:57:04 PST"]
[Termination "maheswaran26 won by checkmate"]

1. d4 {[%clk 0:02:59.4]} 1... c5 {[%clk 0:02:59.7]} 2. d5 {[%clk 0:02:57.8]}
2... d6 {[%clk 0:03:00.1]} 3. e4 {[%clk 0:02:56.6]} 3... Nf6 {[%clk 0:03:00.4]}
4. Nc3 {[%clk 0:02:55.5]} 4... e6 {[%clk 0:03:01]} 5. Bb5+ {[%clk 0:02:50.8]}
5... Bd7 {[%clk 0:03:01.1]} 6. dxe6 {[%clk 0:02:48.7]} 6... fxe6 {[%clk
0:03:02]} 7. Bc4 {[%clk 0:02:39]} 7... a6 {[%clk 0:03:00.3]} 8. a4 {[%clk
0:02:38]} 8... Nc6 {[%clk 0:03:00.8]} 9. Nf3 {[%clk 0:02:38.2]} 9... Qe7 {[%clk
0:03:00.4]} 10. O-O {[%clk 0:02:36]} 10... O-O-O {[%clk 0:03:00.4]} 11. Re1
{[%clk 0:02:25.2]} 11... Be8 {[%clk 0:02:46]} 12. Ng5 {[%clk 0:01:43.3]} 12...
Nd4 {[%clk 0:02:44]} 13. Be3 {[%clk 0:01:39.5]} 13... h6 {[%clk 0:02:43.3]} 14.
Nh3 {[%clk 0:01:15]} 14... Bh5 {[%clk 0:02:08.2]} 15. f3 {[%clk 0:01:06.3]}
15... e5 {[%clk 0:01:49.4]} 16. Nd5 {[%clk 0:01:04.2]} 16... Nxd5 {[%clk
0:01:48.9]} 17. Bxd5 {[%clk 0:01:04.1]} 17... Qd7 {[%clk 0:01:39.9]} 18. Nf2
{[%clk 0:00:55.2]} 18... g5 {[%clk 0:01:33.1]} 19. c3 {[%clk 0:00:54.6]} 19...
Ne6 {[%clk 0:01:31.3]} 20. Qb3 {[%clk 0:00:47.8]} 20... Nf4 {[%clk 0:01:31]} 21.
Bxf4 {[%clk 0:00:47.4]} 21... Kb8 {[%clk 0:01:22.7]} 22. Be3 {[%clk 0:00:39.6]}
22... g4 {[%clk 0:01:22.8]} 23. fxg4 {[%clk 0:00:37.3]} 23... Bg6 {[%clk
0:01:18.6]} 24. c4 {[%clk 0:00:34.4]} 24... Be7 {[%clk 0:01:17.8]} 25. a5 {[%clk
0:00:27.2]} 25... h5 {[%clk 0:01:17.8]} 26. g5 {[%clk 0:00:25.5]} 26... h4
{[%clk 0:01:17.7]} 27. Ng4 {[%clk 0:00:22.9]} 27... h3 {[%clk 0:01:16.1]} 28. g3
{[%clk 0:00:22.4]} 28... Qxg4 {[%clk 0:01:13.2]} 29. Qxb7# {[%clk 0:00:21.4]}
1-0

[Event "*** Titled Tuesday Blitz"]
[Site "Chess.com"]
[Date "2021.03.02"]
[Round "10"]
[White "Zemerovv"]
[Black "grunbergmihai"]
[Result "1-0"]
[WhiteElo "2324"]
[BlackElo "2475"]
[TimeControl "180+1"]
[EndTime "11:57:10 PST"]
[Termination "Zemerovv won by resignation"]

1. d4 {[%clk 0:02:59]} 1... Nf6 {[%clk 0:02:59.6]} 2. Nf3 {[%clk 0:02:59.6]}
2... g6 {[%clk 0:02:58]} 3. Nbd2 {[%clk 0:02:58]} 3... d5 {[%clk 0:02:57.7]} 4.
b4 {[%clk 0:02:56.8]} 4... Bg7 {[%clk 0:02:56.6]} 5. Bb2 {[%clk 0:02:56.6]} 5...
O-O {[%clk 0:02:57.5]} 6. e3 {[%clk 0:02:56.6]} 6... a5 {[%clk 0:02:56.8]} 7. b5
{[%clk 0:02:55.6]} 7... Nbd7 {[%clk 0:02:54.3]} 8. c4 {[%clk 0:02:53.3]} 8... c6
{[%clk 0:02:53.4]} 9. a4 {[%clk 0:02:52.7]} 9... dxc4 {[%clk 0:02:49.1]} 10.
Bxc4 {[%clk 0:02:52]} 10... Nb6 {[%clk 0:02:48.4]} 11. Ba2 {[%clk 0:02:46.2]}
11... cxb5 {[%clk 0:02:45.4]} 12. axb5 {[%clk 0:02:45.1]} 12... a4 {[%clk
0:02:45.2]} 13. Ba3 {[%clk 0:02:42.5]} 13... Bf5 {[%clk 0:02:38.9]} 14. O-O
{[%clk 0:02:33.4]} 14... Bd3 {[%clk 0:02:38]} 15. Re1 {[%clk 0:02:32.5]} 15...
Bxb5 {[%clk 0:02:37.6]} 16. Ne5 {[%clk 0:02:27.6]} 16... Nfd5 {[%clk 0:02:33.5]}
17. Ne4 {[%clk 0:02:08.6]} 17... Rc8 {[%clk 0:02:21.8]} 18. Rb1 {[%clk
0:01:58.1]} 18... Ba6 {[%clk 0:02:12.8]} 19. Qf3 {[%clk 0:01:47.8]} 19... Bxe5
{[%clk 0:01:59.1]} 20. dxe5 {[%clk 0:01:47.1]} 20... Bc4 {[%clk 0:01:57]} 21.
Rb2 {[%clk 0:01:22.1]} 21... Re8 {[%clk 0:01:48.9]} 22. Bb1 {[%clk 0:01:19.3]}
22... Bb3 {[%clk 0:01:40.9]} 23. Qh3 {[%clk 0:01:13.4]} 23... Nc4 {[%clk
0:01:28.1]} 24. Ng5 {[%clk 0:01:09.7]} 24... h5 {[%clk 0:01:28.1]} 25. e6 {[%clk
0:01:02.1]} 25... Rf8 {[%clk 0:00:52.3]} 26. exf7+ {[%clk 0:01:00.8]} 26... Rxf7
{[%clk 0:00:47]} 27. Bxg6 {[%clk 0:01:00.2]} 27... Rg7 {[%clk 0:00:43.1]} 28.
Qxh5 {[%clk 0:00:54.9]} 28... Nf6 {[%clk 0:00:36.5]} 29. Bf7+ {[%clk 0:00:51.3]}
1-0

[Event "*** Titled Tuesday Blitz"]
[Site "Chess.com"]
[Date "2021.03.02"]
[Round "10"]
[White "Fiona"]
[Black "zmeeed67"]
[Result "0-1"]
[WhiteElo "2275"]
[BlackElo "2433"]
[TimeControl "180+1"]
[EndTime "11:57:10 PST"]
[Termination "zmeeed67 won by checkmate"]

1. e4 {[%clk 0:03:00.9]} 1... Nc6 {[%clk 0:02:53.1]} 2. Nf3 {[%clk 0:02:54.8]}
2... d6 {[%clk 0:02:53.3]} 3. d4 {[%clk 0:02:54.4]} 3... Nf6 {[%clk 0:02:53.3]}
4. Nc3 {[%clk 0:02:52.3]} 4... Bg4 {[%clk 0:02:53.5]} 5. Be2 {[%clk 0:02:50.1]}
5... g6 {[%clk 0:02:53.4]} 6. Be3 {[%clk 0:02:47.1]} 6... Bg7 {[%clk 0:02:52.9]}
7. Qd2 {[%clk 0:02:44.4]} 7... O-O {[%clk 0:02:48.8]} 8. O-O-O {[%clk
0:02:35.4]} 8... e5 {[%clk 0:02:40.8]} 9. d5 {[%clk 0:02:22.7]} 9... Bxf3 {[%clk
0:02:40]} 10. gxf3 {[%clk 0:02:12.3]} 10... Nd4 {[%clk 0:02:39.9]} 11. h4 {[%clk
0:02:02.6]} 11... h5 {[%clk 0:02:34.6]} 12. Bh6 {[%clk 0:01:48.5]} 12... c6
{[%clk 0:02:18.5]} 13. Bxg7 {[%clk 0:01:33.8]} 13... Kxg7 {[%clk 0:02:19.4]} 14.
f4 {[%clk 0:01:32.2]} 14... cxd5 {[%clk 0:02:14.5]} 15. exd5 {[%clk 0:01:31.7]}
15... Rc8 {[%clk 0:01:57.3]} 16. Rdg1 {[%clk 0:01:05.7]} 16... Qa5 {[%clk
0:01:30.8]} 17. Bf1 {[%clk 0:00:15]} 17... Ne4 {[%clk 0:00:53.3]} 18. Nxe4
{[%clk 0:00:12.1]} 18... Nb3+ {[%clk 0:00:53.8]} 19. axb3 {[%clk 0:00:03.5]}
19... Qa1# {[%clk 0:00:53.4]} 0-1

[Event "*** Titled Tuesday Blitz"]
[Site "Chess.com"]
[Date "2021.03.02"]
[Round "10"]
[White "mr65"]
[Black "salomez"]
[Result "0-1"]
[WhiteElo "2070"]
[BlackElo "2207"]
[TimeControl "180+1"]
[EndTime "11:57:14 PST"]
[Termination "salomez won by resignation"]

1. e4 {[%clk 0:03:00.9]} 1... c5 {[%clk 0:02:55.8]} 2. Nf3 {[%clk 0:02:59.9]}
2... e6 {[%clk 0:02:54.8]} 3. d4 {[%clk 0:02:57.7]} 3... cxd4 {[%clk 0:02:55.7]}
4. Nxd4 {[%clk 0:02:57.9]} 4... Nf6 {[%clk 0:02:56.6]} 5. Nc3 {[%clk 0:02:57]}
5... Nc6 {[%clk 0:02:56.3]} 6. Ndb5 {[%clk 0:02:54]} 6... d6 {[%clk 0:02:56.5]}
7. Bf4 {[%clk 0:02:50.7]} 7... e5 {[%clk 0:02:56.6]} 8. Bg5 {[%clk 0:02:50.2]}
8... a6 {[%clk 0:02:56.9]} 9. Na3 {[%clk 0:02:49.3]} 9... b5 {[%clk 0:02:57.1]}
10. Nd5 {[%clk 0:02:48.7]} 10... Be7 {[%clk 0:02:56.7]} 11. Bxf6 {[%clk
0:02:47.8]} 11... Bxf6 {[%clk 0:02:56.9]} 12. c3 {[%clk 0:02:48]} 12... O-O
{[%clk 0:02:55.2]} 13. Be2 {[%clk 0:02:44.7]} 13... Bg5 {[%clk 0:02:54.8]} 14.
O-O {[%clk 0:02:42.8]} 14... Be6 {[%clk 0:02:53.1]} 15. Nc2 {[%clk 0:02:41.4]}
15... Ne7 {[%clk 0:02:51.8]} 16. Nce3 {[%clk 0:02:40.4]} 16... g6 {[%clk
0:02:42.6]} 17. a4 {[%clk 0:02:38.9]} 17... bxa4 {[%clk 0:02:37.7]} 18. Rxa4
{[%clk 0:02:35.7]} 18... a5 {[%clk 0:02:38]} 19. b4 {[%clk 0:02:17.7]} 19...
axb4 {[%clk 0:02:35.2]} 20. Rxa8 {[%clk 0:02:14.2]} 20... Qxa8 {[%clk
0:02:35.3]} 21. Nc7 {[%clk 0:02:14]} 21... Qxe4 {[%clk 0:02:33.7]} 22. Nxe6
{[%clk 0:02:12.6]} 22... fxe6 {[%clk 0:02:34.6]} 23. Bf3 {[%clk 0:02:07.7]}
23... Qf4 {[%clk 0:02:27.8]} 24. Qxd6 {[%clk 0:02:02.6]} 24... e4 {[%clk
0:02:15.8]} 25. Qxf4 {[%clk 0:01:58.7]} 25... Bxf4 {[%clk 0:02:12.9]} 26. Bg4
{[%clk 0:01:57.4]} 26... Bxe3 {[%clk 0:02:07.7]} 27. Bxe6+ {[%clk 0:01:53.9]}
27... Kg7 {[%clk 0:02:07.5]} 28. fxe3 {[%clk 0:01:53.9]} 28... Rxf1+ {[%clk
0:02:08.4]} 29. Kxf1 {[%clk 0:01:53.8]} 29... bxc3 {[%clk 0:02:09.3]} 30. Ke1
{[%clk 0:01:50.2]} 30... Kf6 {[%clk 0:02:09.3]} 31. Ba2 {[%clk 0:01:45.2]} 31...
Ke5 {[%clk 0:02:08.9]} 32. g4 {[%clk 0:01:42.3]} 32... Nd5 {[%clk 0:02:08.7]}
33. Ke2 {[%clk 0:01:39.1]} 33... Nb4 {[%clk 0:02:08.6]} 34. Bg8 {[%clk
0:01:37.2]} 34... h6 {[%clk 0:01:50.4]} 35. h4 {[%clk 0:01:36]} 35... g5 {[%clk
0:01:50.3]} 36. hxg5 {[%clk 0:01:34.7]} 36... hxg5 {[%clk 0:01:51.2]} 37. Bh7
{[%clk 0:01:32.7]} 37... c2 {[%clk 0:01:39.5]} 38. Kd2 {[%clk 0:01:31.6]} 38...
Nd5 {[%clk 0:01:39.6]} 39. Kxc2 {[%clk 0:01:28.1]} 39... Nxe3+ {[%clk
0:01:39.7]} 40. Kd2 {[%clk 0:01:28]} 40... Nxg4 {[%clk 0:01:40.6]} 41. Ke2
{[%clk 0:01:27.8]} 41... Kf4 {[%clk 0:01:40.9]} 42. Bg8 {[%clk 0:01:25.4]} 42...
Ne5 {[%clk 0:01:38.5]} 43. Be6 {[%clk 0:01:23.2]} 43... g4 {[%clk 0:01:38.3]}
44. Kf1 {[%clk 0:01:22.4]} 44... Kf3 {[%clk 0:01:37.2]} 45. Bb3 {[%clk
0:01:18.8]} 45... g3 {[%clk 0:01:35.7]} 46. Bd1+ {[%clk 0:01:17.4]} 46... Ke3
{[%clk 0:01:35.1]} 47. Kg2 {[%clk 0:01:17.2]} 47... Kf4 {[%clk 0:01:34.2]} 48.
Be2 {[%clk 0:01:16.4]} 48... e3 {[%clk 0:01:31.7]} 49. Bd1 {[%clk 0:01:12.9]}
49... Nc6 {[%clk 0:01:31.2]} 50. Be2 {[%clk 0:01:07.7]} 50... Nd4 {[%clk
0:01:31.7]} 51. Bd3 {[%clk 0:01:06.5]} 51... e2 {[%clk 0:01:30.3]} 52. Bxe2
{[%clk 0:01:03.8]} 52... Nxe2 {[%clk 0:01:30.2]} 53. Kh1 {[%clk 0:01:04]} 53...
Nd4 {[%clk 0:01:28.6]} 54. Kg2 {[%clk 0:01:02.8]} 54... Kg4 {[%clk 0:01:28.9]}
55. Kh1 {[%clk 0:01:02.3]} 55... Kf3 {[%clk 0:01:29.3]} 56. Kg1 {[%clk
0:01:01.8]} 56... Ne2+ {[%clk 0:01:27.2]} 57. Kh1 {[%clk 0:01:02]} 57... g2+
{[%clk 0:01:27.2]} 0-1

[Event "*** Titled Tuesday Blitz"]
[Site "Chess.com"]
[Date "2021.03.02"]
[Round "10"]
[White "Skat2704"]
[Black "Goryachkina"]
[Result "1/2-1/2"]
[WhiteElo "2583"]
[BlackElo "2697"]
[TimeControl "180+1"]
[EndTime "11:57:19 PST"]
[Termination "Game drawn by agreement"]

1. d4 {[%clk 0:03:00.9]} 1... Nf6 {[%clk 0:02:59.5]} 2. c4 {[%clk 0:02:57.7]}
2... e6 {[%clk 0:02:59.8]} 3. Nf3 {[%clk 0:02:54.7]} 3... d5 {[%clk 0:02:59.9]}
4. Nc3 {[%clk 0:02:53.3]} 4... c6 {[%clk 0:02:58]} 5. Bg5 {[%clk 0:02:51.7]}
5... h6 {[%clk 0:02:57]} 6. Bh4 {[%clk 0:02:50.5]} 6... Nbd7 {[%clk 0:02:56.2]}
7. e3 {[%clk 0:02:49.5]} 7... Be7 {[%clk 0:02:56.5]} 8. Bd3 {[%clk 0:02:45.9]}
8... O-O {[%clk 0:02:56.2]} 9. O-O {[%clk 0:02:44.7]} 9... b6 {[%clk 0:02:52.6]}
10. Rc1 {[%clk 0:02:41.1]} 10... Bb7 {[%clk 0:02:52.5]} 11. cxd5 {[%clk
0:02:35.8]} 11... cxd5 {[%clk 0:02:49]} 12. Bb1 {[%clk 0:02:34.3]} 12... Rc8
{[%clk 0:02:43.3]} 13. Qc2 {[%clk 0:02:32.9]} 13... Ne4 {[%clk 0:02:39]} 14. Bg3
{[%clk 0:02:30.8]} 14... Ndf6 {[%clk 0:02:30.8]} 15. Ne5 {[%clk 0:02:25.1]}
15... Nxc3 {[%clk 0:02:09.5]} 16. bxc3 {[%clk 0:02:24.1]} 16... Ne4 {[%clk
0:02:05.1]} 17. Qd3 {[%clk 0:02:17.4]} 17... Ba3 {[%clk 0:01:38.4]} 18. Rc2
{[%clk 0:02:16.4]} 18... f5 {[%clk 0:01:07.6]} 19. c4 {[%clk 0:01:54.5]} 19...
Bd6 {[%clk 0:01:06.4]} 20. cxd5 {[%clk 0:01:54.2]} 20... Bxd5 {[%clk 0:00:53.5]}
21. Rfc1 {[%clk 0:01:51.6]} 21... Rxc2 {[%clk 0:00:51.4]} 22. Qxc2 {[%clk
0:01:46.8]} 22... Nxg3 {[%clk 0:00:43.4]} 23. hxg3 {[%clk 0:01:45.3]} 23... Bxe5
{[%clk 0:00:43]} 24. dxe5 {[%clk 0:01:45.1]} 24... Qd7 {[%clk 0:00:42.6]} 25.
Qc7 {[%clk 0:01:39.3]} 25... Qa4 {[%clk 0:00:41.4]} 26. Qe7 {[%clk 0:01:26.7]}
26... Re8 {[%clk 0:00:34.1]} 27. Qd6 {[%clk 0:01:15.8]} 27... Kh7 {[%clk
0:00:31.5]} 28. Bxf5+ {[%clk 0:01:05.9]} 28... exf5 {[%clk 0:00:22.5]} 29. Qxd5
{[%clk 0:01:05.8]} 29... Qe4 {[%clk 0:00:22.1]} 30. Qxe4 {[%clk 0:01:01.6]}
30... fxe4 {[%clk 0:00:23]} 31. Rc7 {[%clk 0:01:01.6]} 31... Rxe5 {[%clk
0:00:23.2]} 32. Rxa7 {[%clk 0:01:01.5]} 1/2-1/2

[Event "*** Titled Tuesday Blitz"]
[Site "Chess.com"]
[Date "2021.03.02"]
[Round "10"]
[White "Alex-11211"]
[Black "Gusarov91"]
[Result "0-1"]
[WhiteElo "2391"]
[BlackElo "2528"]
[TimeControl "180+1"]
[EndTime "11:57:23 PST"]
[Termination "Gusarov91 won on time"]

1. e4 {[%clk 0:03:00.9]} 1... c6 {[%clk 0:03:00]} 2. Nc3 {[%clk 0:03:00.2]} 2...
d5 {[%clk 0:03:00]} 3. d4 {[%clk 0:02:58.9]} 3... dxe4 {[%clk 0:02:58.3]} 4.
Nxe4 {[%clk 0:02:59.8]} 4... Bf5 {[%clk 0:02:56.9]} 5. Ng3 {[%clk 0:02:59.8]}
5... Bg6 {[%clk 0:02:56.6]} 6. Nf3 {[%clk 0:03:00.7]} 6... Nd7 {[%clk
0:02:55.4]} 7. h4 {[%clk 0:02:59.6]} 7... h6 {[%clk 0:02:55.5]} 8. h5 {[%clk
0:02:59.2]} 8... Bh7 {[%clk 0:02:55.9]} 9. Bd3 {[%clk 0:02:59.8]} 9... Bxd3
{[%clk 0:02:56]} 10. Qxd3 {[%clk 0:03:00.7]} 10... Ngf6 {[%clk 0:02:56.3]} 11.
Bd2 {[%clk 0:03:00.6]} 11... e6 {[%clk 0:02:56.4]} 12. O-O-O {[%clk 0:02:59.1]}
12... Bd6 {[%clk 0:02:56]} 13. Ne4 {[%clk 0:02:58.5]} 13... Nxe4 {[%clk
0:02:56.2]} 14. Qxe4 {[%clk 0:02:59.4]} 14... Nf6 {[%clk 0:02:56.9]} 15. Qe2
{[%clk 0:02:59.6]} 15... Qe7 {[%clk 0:02:56.5]} 16. Ne5 {[%clk 0:02:46.4]} 16...
O-O-O {[%clk 0:02:55.2]} 17. c4 {[%clk 0:02:39.1]} 17... Bxe5 {[%clk 0:02:50.8]}
18. dxe5 {[%clk 0:02:34]} 18... Nd7 {[%clk 0:02:51]} 19. Bc3 {[%clk 0:02:21.5]}
19... Qg5+ {[%clk 0:02:43.5]} 20. Kb1 {[%clk 0:02:01.4]} 20... Nc5 {[%clk
0:02:37.1]} 21. g3 {[%clk 0:01:09.3]} 21... Qf5+ {[%clk 0:02:35.4]} 22. Ka1
{[%clk 0:01:01.8]} 22... Qe4 {[%clk 0:02:35.1]} 23. Qxe4 {[%clk 0:00:48]} 23...
Nxe4 {[%clk 0:02:35]} 24. Bd4 {[%clk 0:00:48.6]} 24... b6 {[%clk 0:02:16.7]} 25.
Be3 {[%clk 0:00:37.9]} 25... Kc7 {[%clk 0:02:05.8]} 26. Kb1 {[%clk 0:00:37.8]}
26... f6 {[%clk 0:01:54.2]} 27. Rxd8 {[%clk 0:00:20]} 27... Rxd8 {[%clk
0:01:52.5]} 28. exf6 {[%clk 0:00:20.1]} 28... Nxf6 {[%clk 0:01:52.8]} 29. Kc2
{[%clk 0:00:19.7]} 29... e5 {[%clk 0:01:51.2]} 30. Rd1 {[%clk 0:00:17.7]} 30...
Rxd1 {[%clk 0:01:50.7]} 31. Kxd1 {[%clk 0:00:18.6]} 31... Nxh5 {[%clk
0:01:51.3]} 32. Ke2 {[%clk 0:00:18.2]} 32... Nf6 {[%clk 0:01:50.1]} 33. Kf3
{[%clk 0:00:18.2]} 33... Kd6 {[%clk 0:01:48.1]} 34. b3 {[%clk 0:00:15.5]} 34...
c5 {[%clk 0:01:46.1]} 35. g4 {[%clk 0:00:09.4]} 35... Ke6 {[%clk 0:01:42.5]} 36.
g5 {[%clk 0:00:04]} 36... hxg5 {[%clk 0:01:42.7]} 37. Bxg5 {[%clk 0:00:04.9]}
37... Ne8 {[%clk 0:01:43.5]} 38. Ke3 {[%clk 0:00:03.4]} 38... Nd6 {[%clk
0:01:42.5]} 39. Bd8 {[%clk 0:00:02.6]} 39... Nf5+ {[%clk 0:01:39.1]} 40. Kd3
{[%clk 0:00:01.9]} 40... Nd4 {[%clk 0:01:37.8]} 0-1

[Event "*** Titled Tuesday Blitz"]
[Site "Chess.com"]
[Date "2021.03.02"]
[Round "10"]
[White "HouseOfDurin"]
[Black "gumimis"]
[Result "0-1"]
[WhiteElo "2171"]
[BlackElo "2296"]
[TimeControl "180+1"]
[EndTime "11:57:30 PST"]
[Termination "gumimis won by resignation"]

1. d4 {[%clk 0:03:00.9]} 1... Nf6 {[%clk 0:02:59.3]} 2. Bg5 {[%clk 0:03:01]}
2... Ne4 {[%clk 0:02:59]} 3. h4 {[%clk 0:03:00.5]} 3... Nxg5 {[%clk 0:02:58.5]}
4. hxg5 {[%clk 0:03:01.4]} 4... e6 {[%clk 0:02:54.7]} 5. Nf3 {[%clk 0:03:00.4]}
5... Be7 {[%clk 0:02:54.5]} 6. g6 {[%clk 0:02:58.4]} 6... fxg6 {[%clk
0:02:52.8]} 7. Ne5 {[%clk 0:02:50]} 7... O-O {[%clk 0:02:45.5]} 8. e3 {[%clk
0:02:36.9]} 8... d6 {[%clk 0:02:44.1]} 9. Nxg6 {[%clk 0:02:35.9]} 9... hxg6
{[%clk 0:02:44]} 10. Bd3 {[%clk 0:02:35.8]} 10... Rf6 {[%clk 0:02:34.2]} 11. Qg4
{[%clk 0:01:32.7]} 11... e5 {[%clk 0:02:19.2]} 12. Bc4+ {[%clk 0:00:58.7]} 12...
d5 {[%clk 0:02:18.5]} 13. Bxd5+ {[%clk 0:00:53.5]} 13... Qxd5 {[%clk 0:02:18.5]}
14. Qxc8+ {[%clk 0:00:53.9]} 14... Rf8 {[%clk 0:02:17.5]} 15. Qh3 {[%clk
0:00:35.3]} 15... exd4 {[%clk 0:02:15.8]} 16. Nd2 {[%clk 0:00:20.6]} 16... dxe3
{[%clk 0:02:13.5]} 17. Qxe3 {[%clk 0:00:17.4]} 17... Bg5 {[%clk 0:02:04.6]} 18.
Qd3 {[%clk 0:00:13.6]} 18... Qxd3 {[%clk 0:02:00.2]} 19. cxd3 {[%clk 0:00:12.7]}
19... Bxd2+ {[%clk 0:02:00.6]} 20. Kxd2 {[%clk 0:00:12.9]} 20... Rxf2+ {[%clk
0:02:01]} 21. Ke3 {[%clk 0:00:11.3]} 21... Rxb2 {[%clk 0:01:58.2]} 22. Rh4
{[%clk 0:00:06.4]} 22... Nc6 {[%clk 0:01:55.4]} 23. Rah1 {[%clk 0:00:06.8]}
23... Re8+ {[%clk 0:01:55]} 24. Kf3 {[%clk 0:00:07.3]} 24... Ne5+ {[%clk
0:01:53.2]} 25. Kg3 {[%clk 0:00:07.2]} 25... Nd7 {[%clk 0:01:26.7]} 26. Rh8+
{[%clk 0:00:06.1]} 26... Kf7 {[%clk 0:01:26.8]} 27. Rf1+ {[%clk 0:00:06.7]}
27... Nf6 {[%clk 0:01:27]} 28. Rh4 {[%clk 0:00:04.9]} 28... Rxa2 {[%clk
0:01:25.7]} 29. Rc4 {[%clk 0:00:04.5]} 29... c6 {[%clk 0:01:24.2]} 30. Rd4
{[%clk 0:00:04.5]} 30... Re3+ {[%clk 0:01:22.3]} 31. Kh2 {[%clk 0:00:03.4]}
31... Ke7 {[%clk 0:01:19.2]} 32. Rg4 {[%clk 0:00:01]} 32... Nxg4+ {[%clk
0:01:18.1]} 0-1